fUSD/lending_fUSD_20240101
["ID","MTS","AMOUNT","RATE_DAILY","PERIOD"]
[309760019,1704093042773,-500.0,0.00037798,2]
[309760020,1704093042783,-500.0,0.00037798,2]
[309760021,1704093042795,-500.0,0.00037798,2]
[309760022,1704093042805,-500.0,0.00037798,2]
[309760023,1704093042815,-500.0,0.00037798,2]
[309760024,1704093042826,-500.0,0.00037798,2]
[309760025,1704093042835,-500.0,0.00037798,2]
[309760026,1704093042844,-500.0,0.00037798,2]
[309760027,1704093042854,-500.0,0.00037798,2]
[309760028,1704093042864,-500.0,0.00037798,2]
[309760029,1704093042874,-500.0,0.00037798,2]
[309760031,1704093042883,-500.0,0.00037798,2]
[309760032,1704093042892,-500.0,0.00037798,2]
[309760033,1704093042901,-479.86932468,0.00037798,2]
[309760034,1704093042910,-500.0,0.00037798,2]
[309760035,1704093042920,-529.7,0.00037798,2]
[309760036,1704093042929,-500.0,0.00037798,2]
[309760037,1704093042938,-500.0,0.00037798,2]
[309760038,1704093042948,-500.0,0.00037798,2]
[309760039,1704093042957,-500.0,0.00037798,2]
[309760041,1704093042967,-500.0,0.00037798,2]
[309760042,1704093042976,-500.0,0.00037798,2]
[309760043,1704093042985,-500.0,0.00037798,2]
[309760044,1704093042995,-500.0,0.00037798,2]
[309760045,1704093043005,-500.0,0.00037798,2]
[309760046,1704093043014,-500.0,0.00037799,2]
[309760047,1704093043024,-500.0,0.00037799,2]
[309760048,1704093043090,-500.0,0.00037799,2]
[309760049,1704093043101,-500.0,0.00037799,2]
[309760050,1704093043111,-216.43,0.00037799,2]
[309760051,1704093043120,-500.0,0.00037799,2]
[309760052,1704093043129,-500.0,0.00037799,2]
[309760053,1704093043139,-500.0,0.00037799,2]
[309760054,1704093043149,-500.0,0.00037799,2]
[309760055,1704093043158,-500.0,0.00037799,2]
[309760056,1704093043168,-500.0,0.00037799,2]
[309760057,1704093043177,-500.0,0.00037799,2]
[309760058,1704093043186,-500.0,0.00037799,2]
[309760059,1704093043195,-500.0,0.00037799,2]
[309760060,1704093043204,-500.0,0.00037799,2]
[309760061,1704093043213,-239.72112581,0.00037799,2]
[309760062,1704093043223,-500.0,0.00037799,2]
[309760063,1704093043231,-500.0,0.00037799,2]
[309760064,1704093043240,-500.0,0.00037799,2]
[309760065,1704093043250,-500.0,0.00037799,2]
[309760066,1704093043259,-500.0,0.00037799,2]
[309760067,1704093043269,-500.0,0.00037799,2]
[309760068,1704093043278,-10000.0,0.000378,10]
[309760069,1704093043287,-156.18035303,0.000378,2]
[309760070,1704093043296,-174828.38,0.000378,2]
[309760071,1704093043306,-699.16864479,0.00037805,2]
[309760072,1704093043315,-699.16864479,0.00037821,2]
[309760073,1704093043325,-699.16864479,0.00037837,2]
[309760074,1704093043334,-699.16864479,0.00037853,2]
[309760075,1704093043343,-151.38031523,0.00037859,2]
[309760076,1704093043353,-699.16864479,0.00037868,2]
[309760077,1704093043362,-56595.3451254,0.00037879,10]
[309760078,1704093043372,-773.84272726,0.0003788,4]
[309760079,1704093043381,-150.0,0.00037882,2]
[309760080,1704093043391,-8706.97617314,0.00037883,10]
[309760081,1704093043401,-699.16864479,0.00037884,2]
[309760082,1704093043413,-26120.9285194,0.00037885,10]
[309760083,1704093043422,-500.0,0.00037889,2]
[309760084,1704093043431,-560.63931551,0.00037889,2]
[309760085,1704093043441,-221.02899388,0.00037889,2]
[309760086,1704093043450,-500.0,0.00037889,2]
[309760087,1704093043459,-500.0,0.00037889,2]
[309760088,1704093043469,-500.0,0.00037889,2]
[309760089,1704093043478,-500.0,0.00037889,2]
[309760090,1704093043487,-500.0,0.00037889,2]
[309760091,1704093043497,-500.0,0.00037889,2]
[309760092,1704093043506,-500.0,0.00037889,2]
[309760093,1704093043515,-500.0,0.00037889,2]
[309760094,1704093043524,-500.0,0.00037889,2]
[309760095,1704093043534,-500.0,0.00037889,2]
[309760096,1704093043543,-500.0,0.00037889,2]
[309760097,1704093043553,-500.0,0.00037889,2]
[309760098,1704093043562,-500.0,0.00037889,2]
[309760099,1704093043572,-500.0,0.00037889,2]
[309760100,1704093043581,-500.0,0.00037889,2]
[309760101,1704093043591,-500.0,0.00037889,2]
[309760102,1704093043600,-500.0,0.00037889,2]
[309760103,1704093043610,-500.0,0.00037889,2]
[309760104,1704093043619,-500.0,0.00037889,2]
[309760105,1704093043628,-500.0,0.00037889,2]
[309760106,1704093043638,-516.57142778,0.00037889,2]
[309760107,1704093043647,-500.0,0.00037889,2]
[309760108,1704093043656,-500.0,0.00037889,2]
[309760109,1704093043666,-176.77882075,0.00037889,2]
[309760110,1704093043675,-500.0,0.00037889,2]
[309760111,1704093043684,-500.0,0.00037889,2]
[309760112,1704093043694,-500.0,0.00037889,2]
[309760113,1704093043704,-500.0,0.00037889,2]
[309760114,1704093043713,-500.0,0.00037889,2]
[309760115,1704093043722,-556.95076181,0.00037889,2]
[309760116,1704093043732,-500.0,0.00037889,2]
[309760117,1704093043741,-500.0,0.00037889,2]
[309760118,1704093043751,-500.0,0.00037889,2]
[309760119,1704093043760,-500.0,0.00037889,2]
[309760120,1704093043769,-500.0,0.00037889,2]
[309760121,1704093043779,-500.0,0.00037889,2]
[309760122,1704093043788,-500.0,0.00037889,2]
[309760123,1704093043797,-500.0,0.00037889,2]
[309760124,1704093043806,-500.0,0.00037889,2]
[309760125,1704093043816,-500.0,0.00037889,2]
[309760126,1704093043825,-500.0,0.00037889,2]
[309760127,1704093043834,-500.0,0.00037889,2]
[309760128,1704093043843,-500.0,0.00037889,2]
[309760129,1704093043852,-527.2311682,0.00037889,2]
[309760130,1704093043861,-563.05278463,0.00037889,2]
[309760131,1704093043870,-566.86858237,0.00037889,2]
[309760132,1704093043879,-500.0,0.00037889,2]
[309760133,1704093043888,-500.0,0.00037889,2]
[309760134,1704093043897,-500.0,0.00037889,2]
[309760135,1704093043906,-170.40652471,0.00037889,2]
[309760136,1704093043916,-500.0,0.00037889,2]
[309760137,1704093043926,-500.0,0.00037889,2]
[309760138,1704093043938,-500.0,0.00037889,2]
[309760139,1704093043947,-500.0,0.00037889,2]
[309760140,1704093043957,-500.0,0.00037889,2]
[309760141,1704093043965,-513.19977573,0.00037889,2]
[309760142,1704093043975,-534.36161869,0.00037889,2]
[309760143,1704093043987,-273.8588969,0.00037889,2]
[309760144,1704093043998,-150.0,0.00037889,2]
[309760145,1704093044007,-500.0,0.00037889,2]
[309760146,1704093044016,-500.0,0.00037889,2]
[309760147,1704093044026,-1000.0,0.00037889,2]
[309760148,1704093044038,-500.0,0.00037889,2]
[309760149,1704093044048,-602.98989301,0.00037889,2]
[309760150,1704093044057,-500.0,0.00037889,2]
[309760151,1704093044067,-500.0,0.00037889,2]
[309760152,1704093044076,-352.82478719,0.00037889,2]
[309760153,1704093044086,-500.0,0.00037889,2]
[309760154,1704093044095,-500.0,0.00037889,2]
[309760155,1704093044104,-573.07091715,0.00037889,2]
[309760156,1704093044113,-500.0,0.00037889,2]
[309760157,1704093044123,-560.62246818,0.00037889,2]
[309760158,1704093044132,-500.0,0.00037889,2]
[309760159,1704093044141,-500.0,0.00037889,2]
[309760160,1704093044151,-500.0,0.00037889,2]
[309760161,1704093044160,-507.89883785,0.00037889,2]
[309760162,1704093044168,-387.61862327,0.00037889,2]
[309760163,1704093044178,-500.0,0.00037889,2]
[309760164,1704093044188,-500.0,0.00037889,2]
[309760165,1704093044197,-510.61830845,0.00037889,2]
[309760166,1704093044206,-518.70370265,0.00037889,2]
[309760167,1704093044216,-500.0,0.00037889,2]
[309760168,1704093044226,-521.10570144,0.00037889,2]
[309760169,1704093044235,-500.0,0.00037889,2]
[309760170,1704093044246,-500.0,0.00037889,2]
[309760171,1704093044255,-500.0,0.00037889,2]
[309760172,1704093044269,-500.0,0.00037889,2]
[309760173,1704093044278,-500.0,0.00037889,2]
[309760174,1704093044287,-537.56228158,0.00037889,2]
[309760175,1704093044297,-500.0,0.00037889,2]
[309760176,1704093044306,-610.94912998,0.00037889,2]
[309760177,1704093044315,-180.58290977,0.00037889,2]
[309760178,1704093044326,-500.0,0.00037889,2]
[309760179,1704093044335,-500.0,0.00037889,2]
[309760180,1704093044345,-500.0,0.00037889,2]
[309760181,1704093044354,-500.0,0.00037889,2]
[309760182,1704093044363,-500.0,0.00037889,2]
[309760183,1704093044373,-500.0,0.00037889,2]
[309760184,1704093044382,-500.0,0.00037889,2]
[309760185,1704093044391,-500.0,0.00037889,2]
[309760186,1704093044400,-500.0,0.00037889,2]
[309760187,1704093044412,-500.0,0.00037889,2]
[309760188,1704093044422,-500.0,0.00037889,2]
[309760189,1704093044431,-500.0,0.00037889,2]
[309760190,1704093044441,-500.0,0.00037889,2]
[309760191,1704093044450,-500.0,0.00037889,2]
[309760192,1704093044459,-500.0,0.00037889,2]
[309760193,1704093044469,-500.0,0.00037889,2]
[309760194,1704093044478,-500.0,0.00037889,2]
[309760195,1704093044487,-500.0,0.00037889,2]
[309760196,1704093044496,-500.0,0.00037889,2]
[309760197,1704093044506,-500.0,0.00037889,2]
[309760198,1704093044515,-500.0,0.00037889,2]
[309760199,1704093044524,-500.0,0.00037889,2]
[309760200,1704093044533,-572.99427457,0.00037889,2]
[309760201,1704093044543,-500.0,0.00037889,2]
[309760202,1704093044552,-500.0,0.00037889,2]
[309760203,1704093044562,-500.0,0.00037889,2]
[309760204,1704093044571,-500.0,0.00037889,2]
[309760205,1704093044581,-500.0,0.00037889,2]
[309760206,1704093044590,-520.79800048,0.00037889,2]
[309760207,1704093044599,-500.0,0.00037889,2]
[309760208,1704093044609,-500.0,0.00037889,2]
[309760209,1704093044618,-528.88502717,0.00037889,2]
[309760210,1704093044627,-500.0,0.00037889,2]
[309760211,1704093044637,-516.38418337,0.00037889,2]
[309760212,1704093044648,-629.82964003,0.00037889,2]
[309760213,1704093044658,-521.2211134,0.00037889,2]
[309760214,1704093044667,-640.18272614,0.00037889,2]
[309760215,1704093044677,-500.0,0.00037889,2]
[309760216,1704093044687,-500.0,0.00037889,2]
[309760217,1704093044697,-500.0,0.00037889,2]
[309760218,1704093044707,-500.0,0.00037889,2]
[309760219,1704093044716,-500.0,0.00037889,2]
[309760220,1704093044726,-574.18204464,0.00037889,2]
[309760221,1704093044735,-500.0,0.00037889,2]
[309760222,1704093044745,-632.52,0.00037889,2]
[309760223,1704093044754,-500.0,0.00037889,2]
[309760224,1704093044763,-413.09881783,0.00037889,2]
[309760225,1704093044773,-500.0,0.00037889,2]
[309760226,1704093044782,-500.0,0.00037889,2]
[309760228,1704093044791,-500.0,0.00037889,2]
[309760230,1704093044801,-500.0,0.00037889,2]
[309760232,1704093044810,-500.0,0.00037889,24]
[309760233,1704093044819,-500.0,0.00037889,2]
[309760235,1704093044829,-500.0,0.00037889,2]
[309760237,1704093044838,-500.0,0.00037889,2]
[309760239,1704093044847,-500.0,0.00037889,2]
[309760241,1704093044856,-500.0,0.00037889,2]
[309760243,1704093044866,-500.0,0.00037889,2]
[309760245,1704093044875,-500.0,0.00037889,2]
[309760246,1704093044885,-500.0,0.00037889,2]
[309760247,1704093044897,-500.0,0.00037889,2]
[309760248,1704093044907,-500.0,0.00037889,2]
[309760249,1704093044919,-500.0,0.00037889,2]
[309760250,1704093044930,-500.0,0.00037889,2]
[309760251,1704093044943,-500.0,0.00037889,2]
[309760252,1704093044954,-500.0,0.00037889,2]
[309760253,1704093044964,-305.65883973,0.00037889,2]
[309760254,1704093044974,-500.0,0.00037889,2]
[309760255,1704093044985,-500.0,0.00037889,2]
[309760256,1704093044996,-500.0,0.00037889,2]
[309760257,1704093045006,-1000.0,0.00037889,2]
[309760258,1704093045016,-500.0,0.00037889,2]
[309760259,1704093045025,-500.0,0.00037889,2]
[309760260,1704093045036,-500.0,0.00037889,2]
[309760261,1704093045046,-500.0,0.00037889,2]
[309760262,1704093045056,-500.0,0.00037889,2]
[309760263,1704093045066,-500.0,0.00037889,2]
[309760264,1704093045075,-500.0,0.00037889,2]
[309760265,1704093045084,-169.21859004,0.00037889,2]
[309760266,1704093045094,-500.0,0.00037889,2]
[309760267,1704093045103,-500.0,0.00037889,2]
[309760268,1704093045113,-262.83268877,0.00037889,2]
[309760269,1704093045122,-500.0,0.00037889,2]
[309760270,1704093045132,-569.35200396,0.00037889,2]
[309760271,1704093045146,-500.0,0.00037889,2]
[309760272,1704093045156,-500.0,0.00037889,2]
[309760273,1704093045166,-500.0,0.00037889,2]
[309760274,1704093045176,-500.0,0.00037889,2]
[309760275,1704093045186,-500.0,0.00037889,2]
[309760276,1704093045195,-500.0,0.00037889,2]
[309760277,1704093045205,-500.0,0.00037889,2]
[309760278,1704093045215,-500.0,0.00037889,2]
[309760279,1704093045225,-500.0,0.00037889,2]
[309760280,1704093045235,-500.0,0.00037889,2]
[309760281,1704093045244,-500.0,0.00037889,2]
[309760282,1704093045255,-500.0,0.00037889,2]
[309760283,1704093045267,-500.0,0.00037889,2]
[309760284,1704093045278,-500.0,0.00037889,2]
[309760285,1704093045287,-500.0,0.00037889,2]
[309760286,1704093045299,-520.40876498,0.00037889,2]
[309760287,1704093045312,-500.0,0.00037889,2]
[309760288,1704093045321,-500.0,0.00037889,2]
[309760289,1704093045331,-500.0,0.00037889,2]
[309760290,1704093045341,-502.01418592,0.00037889,2]
[309760291,1704093045351,-500.0,0.00037889,2]
[309760292,1704093045360,-500.0,0.00037889,2]
[309760293,1704093045370,-500.0,0.00037889,2]
[309760294,1704093045380,-500.0,0.00037889,2]
[309760295,1704093045390,-500.0,0.00037889,2]
[309760296,1704093045400,-500.0,0.00037889,2]
[309760297,1704093045412,-13060.4642597,0.0003789,10]
[309760298,1704093045422,-1243.18571765,0.00037893,4]
[309760299,1704093045431,-155.0,0.00037893,4]
[309760300,1704093045441,-156.99484246,0.00037893,4]
[309760301,1704093045451,-155.0,0.00037893,2]
[309760302,1704093045461,-528.56738305,0.00037893,2]
[309760303,1704093045471,-502.59771736,0.00037893,2]
[309760304,1704093045480,-528.34900918,0.00037893,2]
[309760305,1704093045490,-500.0,0.00037893,2]
[309760306,1704093045500,-508.62454699,0.00037893,2]
[309760307,1704093045510,-500.0,0.00037893,2]
[309760308,1704093045519,-534.93502149,0.00037893,2]
[309760309,1704093045529,-500.0,0.00037893,2]
[309760310,1704093045540,-500.0,0.00037893,2]
[309760311,1704093045550,-294.7131144,0.00037893,2]
[309760312,1704093045560,-500.0,0.00037893,2]
[309760313,1704093045569,-500.0,0.00037893,2]
[309760314,1704093045579,-525.21348565,0.00037893,2]
[309760315,1704093045589,-500.0,0.00037893,2]
[309760316,1704093045598,-500.0,0.00037893,2]
[309760317,1704093045608,-500.0,0.00037893,2]
[309760318,1704093045618,-170.74020524,0.00037893,2]
[309760319,1704093045628,-500.0,0.00037893,2]
[309760320,1704093045638,-500.0,0.00037893,2]
[309760321,1704093045649,-500.0,0.00037893,2]
[309760322,1704093045659,-538.92383864,0.00037893,2]
[309760323,1704093045668,-500.0,0.00037893,2]
[309760324,1704093045678,-500.0,0.00037893,2]
[309760325,1704093045688,-545.95972387,0.00037893,2]
[309760326,1704093045697,-500.0,0.00037893,2]
[309760327,1704093045707,-500.0,0.00037893,2]
[309760328,1704093045716,-500.0,0.00037893,2]
[309760329,1704093045726,-500.0,0.00037893,2]
[309760330,1704093045735,-500.0,0.00037893,2]
[309760331,1704093045745,-521.61,0.00037893,2]
[309760332,1704093045755,-505.6,0.00037893,2]
[309760333,1704093045765,-500.0,0.00037893,2]
[309760334,1704093045776,-279.94478428,0.00037893,2]
[309760335,1704093045785,-1747.6517811,0.00037894,2]
[309760336,1704093045795,-185.0458864,0.00037894,2]
[309760337,1704093045805,-500.0,0.00037894,2]
[309760338,1704093045814,-1470.9039008,0.00037895,2]
[309760339,1704093045823,-48982.7729005,0.00037895,2]
[309760340,1704093045833,-151.77777,0.00037898,4]
[309760341,1704093045843,-500.0,0.00037899,2]
[309760342,1704093045853,-151.83820868,0.000379,3]
[309760343,1704093045862,-2574.8723139,0.000379,11]
[309760345,1704093045872,-1293.9847346,0.000379,2]
[309760347,1704093045882,-26421.40526148,0.000379,3]
[309760349,1704093046099,-1266.35505483,0.000379,3]
[309760350,1704093046389,-1070.42870102,0.000379,3]
[309760351,1704093046402,-329.96370673,0.000379,3]
[309760353,1704093046534,-137073.92958594,0.000379,3]
[309760354,1704093046545,-699.16864479,0.000379,2]
[309760355,1704093046555,-235.34965234,0.000379,2]
[309760356,1704093046566,-157.0160556,0.000379,2]
[309760357,1704093046576,-2233.98505463,0.000379,2]
[309760358,1704093046585,-224.47673267,0.000379,2]
[309760359,1704093046595,-270.17343346,0.000379,2]
[309760360,1704093046605,-150.0,0.00037921,2]
[309760361,1704093046615,-250.53959618,0.00037933,8]
[309760362,1704093046625,-2042.45994234,0.00037936,10]
[309760363,1704093046634,-500.0,0.0003796,2]
[309760364,1704093046644,-318.74010213,0.0003796,2]
[309760365,1704093046903,-926.5167937,0.0003753,2]
[309760366,1704093046912,-77.91281318,0.0003796,2]
[309760367,1704093046924,-103.34708469,0.0003796,2]
[309760368,1704093046933,-220.43720612,0.00037969,10]
[309760369,1704093046944,-1.7108929,0.00037969,10]
[309760370,1704093046953,-437.27741756,0.0003798,3]
[309760371,1704093046964,-2979.87841503,0.0003798,3]
[309760372,1704093046974,-1245.28478886,0.0003798,3]
[309760373,1704093046985,-7034.42364167,0.0003798,3]
[309760374,1704093046996,-296.71386855,0.0003798,3]
[309760375,1704093047008,-41570.07203606,0.0003798,3]
[309760376,1704093047019,-615.52317865,0.0003798,3]
[309760377,1704093047030,-7861.9472105,0.0003798,3]
[309760378,1704093047042,-729.24594898,0.0003798,3]
[309760379,1704093047054,-561.1475396,0.0003798,3]
[309760380,1704093047065,-2563.89413377,0.0003798,3]
[309760381,1704093047086,-0.00572382,0.0003798,3]
[309760382,1704093047097,-10071.60396504,0.0003798,3]
[309760383,1704093047109,-3510.059181,0.0003798,3]
[309760384,1704093047120,-93944.80659624,0.0003798,3]
[309760385,1704093047164,-477.35188873,0.00037798,2]
[309760386,1704093047173,-2428.02410516,0.0003798,3]
[309760387,1704093047184,-424.82213099,0.0003798,3]
[309760388,1704093047195,-1346.76643358,0.0003798,3]
[309760389,1704093047207,-1715.5510976,0.0003798,3]
[309760390,1704093047218,-505.2786004,0.0003798,3]
[309760391,1704093047229,-2547.395,0.0003798,3]
[309760392,1704093047241,-410.14545605,0.0003798,3]
[309760393,1704093047252,-8415.11317117,0.0003798,3]
[309760394,1704093047353,-364.94832004,0.0003798,3]
[309760395,1704093047365,-652.4100003,0.0003798,3]
[309760396,1704093047376,-1142.50000001,0.0003798,3]
[309760397,1704093047388,-2544.14776233,0.0003798,3]
[309760398,1704093047406,-12440.53689386,0.0003798,3]
[309760405,1704094172091,-183.9998451,0.0002746,2]
[309760427,1704094232153,-763.9962269,0.00026463,2]
[309760428,1704094232162,-204.0,0.00026464,2]
[309760429,1704094232171,-525.94735941,0.00028799,2]
[309760430,1704094232181,-597.06795467,0.000288,2]
[309760431,1704094232361,-451.63886766,0.000288,2]
[309760432,1704094235070,-700.29317767,0.000288,2]
[309760433,1704094235082,-115.90082952,0.00033172,13]
[309760439,1704094238447,-88.09917048,0.00033172,13]
[309760440,1704094238469,-1000.0,0.00034,4]
[309760441,1704094238480,-154.060486,0.00034186,2]
[309760442,1704094238489,-189.0,0.00034287,2]
[309760443,1704094238498,-157.7,0.00034709,2]
[309760444,1704094238508,-152.29,0.00036497,2]
[309760445,1704094238517,-360.0,0.00036622,2]
[309760446,1704094238526,-152.21,0.00036629,2]
[309760447,1704094238536,-640.0,0.00036705,2]
[309760448,1704094238545,-143.64268104,0.00036762,2]
[309760449,1704094238557,-782.70731896,0.00036762,2]
[309760450,1704094238566,-151.77777,0.00036998,2]
[309760451,1704094238576,-359.10871574,0.00037,38]
[309760452,1704094238586,-151.77777,0.00037098,4]
[309760453,1704094238595,-151.77777,0.00037198,4]
[309760454,1704094238605,-500.0,0.00037239,2]
[309760455,1704094238614,-151.77777,0.00037298,4]
[309760456,1704094238624,-250.00809144,0.00037373,9]
[309760457,1704094238633,-260.28931128,0.00037373,9]
[309760458,1704094238643,-226.66255588,0.00037373,9]
[309760459,1704094238653,-369.99128132,0.00037373,9]
[309760460,1704094238663,-1000.0,0.00037373,10]
[309760461,1704094238673,-224.34274182,0.00037373,9]
[309760462,1704094238682,-346.61086645,0.00037373,9]
[309760463,1704094241901,-244.70850792,0.00037373,9]
[309760464,1704094241911,-396.7871456,0.00037373,9]
[309760465,1704094241920,-658.79082626,0.00037373,9]
[309760466,1704094241931,-157.7,0.00037397,2]
[309760467,1704094241942,-151.77777,0.00037398,4]
[309760468,1704094241951,-151.77777,0.00037498,4]
[309760469,1704094241960,-152.29,0.00037527,2]
[309760470,1704094241970,-151.77777,0.00037598,4]
[309760471,1704094241979,-200.0,0.00037627,2]
[309760472,1704094241988,-119.29021022,0.00037698,4]
[309760473,1704094242000,-32.48755978,0.00037698,4]
[309760474,1704094242010,-200.22644395,0.0003779,2]
[309760475,1704094242019,-4787.67444841,0.00037793,2]
[309760476,1704094242035,-212.32555159,0.00037793,2]
[309760477,1704094242044,-318.73444841,0.00037793,2]
[309760486,1704094246145,-500.0,0.00037793,2]
[309760487,1704094246154,-41.0,0.00037793,2]
[309760488,1704094246200,-459.0,0.00037793,2]
[309760489,1704094246210,-500.0,0.00037793,2]
[309760490,1704094246219,-500.0,0.00037793,2]
[309760491,1704094246229,-500.0,0.00037793,2]
[309760492,1704094246238,-626.73780628,0.00037793,2]
[309760493,1704094246248,-116.10642255,0.00037793,2]
[309760494,1704094246259,-460.74301204,0.00037793,2]
[309760495,1704094246268,-26.70565496,0.00037793,2]
[309760496,1704094246562,-473.29434504,0.00037793,2]
[309760497,1704094246572,-500.0,0.00037793,2]
[309760498,1704094246581,-500.0,0.00037793,2]
[309760499,1704094246590,-151.77777,0.00037798,4]
[309760500,1704094246600,-80115.39747565,0.000378,2]
[309760501,1704094246610,-5000.00000001,0.00037809,2]
[309760502,1704094246620,-938.91852644,0.00037871,2]
[309760503,1704094246630,-944.16158709,0.00037871,2]
[309760505,1704094246640,-55555.0,0.00037873,3]
[309760506,1704094246649,-502.05864489,0.00037889,2]
[309760507,1704094246659,-189.48202075,0.0003789,2]
[309760508,1704094246668,-156.18035303,0.00037898,2]
[309760509,1704094246678,-151.77777,0.00037898,4]
[309760510,1704094246687,-150.0,0.00037899,7]
[309760511,1704094246697,-236.99,0.00037899,7]
[309760512,1704094246706,-2675.950383,0.000379,12]
[309760513,1704094246715,-3650.99921421,0.000379,11]
[309760514,1704094246725,-8784.15,0.000379,2]
[309760515,1704094246734,-300.0,0.000379,2]
[309760516,1704094246744,-1293.9847346,0.000379,2]
[309760517,1704094246753,-541.0,0.000379,2]
[309760518,1704094246763,-180.1156223,0.000379,2]
[309760519,1704094246772,-5790.21,0.000379,2]
[309760520,1704094246781,-200.93878,0.0003796,2]
[309760521,1704094246790,-154.0,0.00037962,2]
[309760522,1704094246800,-5182.7239126,0.00037963,10]
[309760523,1704094246810,-4146.17913008,0.00037964,10]
[309760524,1704094246819,-1036.54478252,0.0003797,10]
[309760525,1704094246829,-500.0,0.00037971,2]
[309760526,1704094246838,-362.22938197,0.00037971,2]
[309760545,1704095217918,580.0,0.00038971,30]
[309760557,1704095274455,490.0,0.00038971,120]
[309760570,1704095431478,-155.0,0.00027459,2]
[309760571,1704095431487,-998.89734777,0.00027459,2]
[309760572,1704095431497,-56.3896853,0.0002746,2]
[309760573,1704095431531,-1162.42113769,0.0002746,2]
[309760620,1704095437406,-1907.3239469,0.0002746,2]
[309760621,1704095437415,-2396.8760531,0.0002746,2]
[309760622,1704095437459,-1798.70392379,0.0002746,2]
[309760623,1704095437469,-154.06048599,0.000339,2]
[309760624,1704095437478,-71.24706526,0.00034422,4]
[309760625,1704095437489,-928.75293474,0.00034422,4]
[309760626,1704095437498,-11.87706527,0.00034423,2]
[309760627,1704095437723,-145.82293473,0.00034423,2]
[309760628,1704095437733,-152.0,0.00035163,3]
[309760629,1704095437742,-499.1649,0.00035971,2]
[309760630,1704095437751,-319.68310777,0.00036061,2]
[309760631,1704095437761,-240.56529111,0.00036069,4]
[309760632,1704095437770,-155.0,0.0003607,2]
[309760633,1704095437779,-2668.96557729,0.00036071,4]
[309760634,1704095437795,-143171.37630154,0.00036071,4]
[309760635,1704095437807,-793.67266726,0.00036071,4]
[309760642,1704095439941,-4356.0517,0.00036071,4]
[309760643,1704095439954,-1189.05,0.00036071,4]
[309760645,1704095440779,-1086.96226183,0.00036071,4]
[309760646,1704095440789,-849.74542839,0.0003619,2]
[309760647,1704095440798,-152.29,0.00036195,2]
[309760648,1704095440808,-288.0,0.00036409,2]
[309760649,1704095440817,-152.08,0.00036449,2]
[309760650,1704095440826,-712.0,0.00036717,2]
[309760651,1704095440836,-849.74542833,0.00036813,2]
[309760652,1704095440845,-205.0,0.00036879,2]
[309760653,1704095440854,-771.95,0.00036955,2]
[309760654,1704095440864,-151.77777,0.00037098,4]
[309760655,1704095440873,-151.77777,0.00037198,4]
[309760656,1704095440881,-151.77777,0.00037298,4]
[309760657,1704095440891,-152.29,0.00037343,2]
[309760658,1704095440900,-353.99979136,0.00037373,9]
[309760659,1704095440911,-275.0,0.00037373,9]
[309760660,1704095440920,-193.3984576,0.00037373,9]
[309760661,1704095440930,-1000.0,0.00037373,10]
[309760662,1704095440939,-316.47408396,0.00037373,9]
[309760663,1704095440949,-177.56646838,0.00037373,9]
[309760664,1704095440958,-154.16258918,0.00037373,9]
[309760665,1704095440967,-1000.0,0.00037373,10]
[309760666,1704095440976,-151.77777,0.00037398,4]
[309760667,1704095440986,-3451.62441097,0.00037405,15]
[309760676,1704095442379,-606.77930205,0.00037405,15]